bitfinex/quotes_SOLUSD_20250708
["timestamp","ask_amount","ask_price","bid_price","bid_amount"]
[1752010904353,26.0,150.64,150.62,41.08566454]
[1752010905367,26.0,150.64,150.63,7.34518109]
[1752010909544,26.0,150.64,150.63,13.28084563]
[1752010909743,26.0,150.64,150.63,19.9196294]
[1752010913347,26.0,150.64,150.63,13.98396486]
[1752010913553,26.0,150.64,150.63,19.9196294]
[1752010914556,26.0,150.64,150.63,13.28084563]
[1752010917978,26.0,150.64,150.63,19.9196294]
[1752010918151,26.0,150.64,150.63,29.0819642]
[1752010919073,26.0,150.64,150.63,19.9196294]
[1752010919257,26.0,150.64,150.63,29.0819642]
[1752010923467,18.64964886,150.67,150.63,48.20084563]
[1752010923468,18.64964886,150.66,150.63,48.20084563]
[1752010923672,18.64964886,150.66,150.64,7.34518109]
[1752010923977,18.64964886,150.66,150.65,7.34518109]
[1752010925870,26.0,150.67,150.65,13.28084563]
[1752010926176,44.64964886,150.67,150.66,13.28084563]
[1752010926470,44.64964886,150.67,150.66,7.34518109]
[1752010936372,147.56,150.72,150.66,19.918269]
[1752010936594,18.64964886,150.71,150.68,9.27875311]
[1752010936769,18.64964886,150.71,150.69,57.41742013]
[1752010936971,18.64964886,150.71,150.7,7.42300248]
[1752010937193,44.64964886,150.71,150.7,7.42300248]
[1752010937873,51.28490863,150.71,150.7,7.42300248]
[1752010945177,51.34490863,150.71,150.7,7.42300248]
[1752010951310,51.34490863,150.71,150.69,7.42300248]
[1752010951491,51.34490863,150.71,150.7,7.42300248]
[1752010951694,51.34490863,150.71,150.69,7.42300248]
[1752010951892,51.34490863,150.71,150.7,7.42300248]
[1752010952280,51.34490863,150.71,150.69,7.42300248]
[1752010952608,51.34490863,150.71,150.7,7.42300248]
[1752010953104,51.34490863,150.71,150.68,34.78]
[1752010953308,51.34490863,150.71,150.69,7.40812131]
[1752010953489,51.34490863,150.71,150.68,34.78]
[1752010953688,18.64964886,150.69,150.65,15.9164547]
[1752010954011,18.64964886,150.69,150.66,7.4104746]
[1752010954188,18.64964886,150.69,150.67,7.4104746]
[1752010954399,18.64964886,150.69,150.68,7.4104746]
[1752010954783,18.64964886,150.69,150.66,7.4104746]
[1752010955002,5.93566454,150.69,150.67,7.4104746]
[1752010955206,5.93566454,150.69,150.65,34.58]
[1752010955508,5.93566454,150.69,150.66,7.41224337]
[1752010955710,12.57214796,150.69,150.67,7.41224337]
[1752010955910,12.57214796,150.69,150.64,47.13387281]
[1752010956103,12.57214796,150.69,150.65,7.41274011]
[1752010956294,18.64964886,150.67,150.66,7.41274011]
[1752010958303,18.64964886,150.67,150.66,7.4147411]
[1752010961917,31.50665784,150.67,150.66,7.4147411]
[1752010962121,18.64964886,150.64,150.62,0.03]
[1752010962619,24.5853134,150.64,150.62,0.03]
[1752010964110,31.22389127,150.64,150.62,0.03]
[1752010967035,18.64964886,150.64,150.62,0.03]
[1752010968798,18.64964886,150.64,150.62,5.96566454]
[1752010969107,18.64964886,150.64,150.62,0.03]
[1752010988636,18.70964886,150.64,150.62,0.03]
[1752011006336,4.74355635,150.63,150.62,0.03]
[1752011006734,177.5918501,150.64,150.62,0.03]
[1752011007625,0.06,150.64,150.62,4.77355635]
[1752011007832,26.06,150.64,150.62,4.77355635]
[1752011008339,26.06,150.64,150.62,0.03]
[1752011008543,26.06,150.64,150.62,4.77355635]
[1752011009153,26.06,150.64,150.62,11.41277409]
[1752011009350,0.06,150.64,150.63,4.74355635]
[1752011011357,0.06,150.64,150.63,11.38234012]
[1752011015668,0.06,150.64,150.63,6.63878377]
[1752011015975,0.06,150.64,150.63,11.38234012]
[1752011028448,0.06,150.64,150.63,13.02054012]
[1752011030683,0.06,150.64,150.63,31.99476552]
[1752011031064,0.06,150.64,150.63,41.27301272]
[1752011032074,0.06,150.64,150.63,75.97689109]
[1752011032241,0.06,150.71,150.63,92.85817366]
[1752011032448,0.06,150.71,150.7,4.74355635]
[1752011032646,0.06,150.71,150.69,34.04]
[1752011032863,26.06,150.71,150.69,34.04]
[1752011033299,0.06,150.71,150.69,34.04]
[1752011033768,0.06,150.71,150.69,40.67603575]
[1752011033971,0.06,150.71,150.7,4.74355635]
[1752011035977,0.06,150.71,150.7,11.37925641]
[1752011037074,0.06,150.71,150.7,12.32714955]
[1752011037575,1e-08,150.71,150.7,12.32714955]
[1752011037780,1e-08,150.72,150.71,0.28432314]
[1752011037976,1e-08,150.72,150.71,45.74313926]
[1752011038157,1e-08,150.72,150.71,64.71736466]
[1752011038772,1e-08,150.72,150.71,90.71736466]
[1752011039177,1e-08,150.72,150.71,109.36701352]
[1752011040265,1e-08,150.72,150.71,83.36701352]
[1752011040973,1e-08,150.72,150.71,93.36701352]
[1752011041986,0.2,150.77,150.74,26.0]
[1752011042161,0.2,150.77,150.76,11.37661551]
[1752011042794,0.2,150.77,150.76,6.63305916]
[1752011042993,0.2,150.77,150.76,14.02634447]
[1752011043499,0.2,150.77,150.76,6.63305916]
[1752011043659,0.2,150.77,150.75,35.5941]
[1752011043660,0.2,150.77,150.75,40.71331435]
[1752011043862,0.2,150.77,150.76,41.57328531]
[1752011045879,0.2,150.77,150.76,48.20634447]
[1752011048009,32.63013638,150.83,150.76,53.10070627]
[1752011048208,32.63013638,150.83,150.73,17.24938306]
[1752011048209,6.63013638,150.83,150.77,34.16]
[1752011048373,6.63013638,150.83,150.79,7.39328531]
[1752011048573,6.63013638,150.83,150.8,4.89340086]
[1752011048794,154.13013638,150.83,150.81,4.89340086]
[1752011048974,172.77978524,150.83,150.82,4.89340086]
[1752011049170,154.53353829,150.83,150.82,9.78640777]
[1752011050201,119.29217092,150.83,150.82,4.89340086]
[1752011052286,6.82825981,150.87,150.82,12.28668617]
[1752011052513,6.82825981,150.87,150.83,7.39328531]
[1752011052706,0.2,150.87,150.84,7.39328531]
[1752011053007,0.06,150.84,150.83,7.39328531]
[1752011054113,0.06,150.84,150.83,14.02326608]
[1752011056197,0.06,150.84,150.83,7.39328531]
[1752011060105,0.06,150.84,150.82,6.63032103]
[1752011060425,13.78153348,150.87,150.82,7.39328531]
[1752011060616,13.78153348,150.87,150.81,7.39328531]
[1752011060617,18.64964886,150.85,150.81,7.39328531]
[1752011062390,18.64964886,150.85,150.8,6.63091375]
[1752011062391,25.27891676,150.85,150.8,6.63091375]
[1752011062591,18.64964886,150.83,150.79,7.39328531]
[1752011063813,25.27988707,150.83,150.79,7.39328531]
[1752011065209,25.27988707,150.83,150.78,7.39328531]
[1752011067093,25.27988707,150.83,150.79,7.39328531]
[1752011067625,25.27988707,150.83,150.78,7.39328531]
[1752011067924,25.27988707,150.83,150.8,7.39328531]
[1752011068219,25.27988707,150.83,150.77,6.63245197]
[1752011068419,25.27988707,150.83,150.79,7.39328531]
[1752011069201,25.27988707,150.83,150.8,7.39328531]
[1752011072406,18.64964886,150.83,150.8,7.39328531]
[1752011072840,18.64964886,150.83,150.81,7.39328531]
[1752011075529,4.93476592,150.82,150.81,7.39328531]
[1752011075705,4.93476592,150.82,150.81,12.29594877]
[1752011076313,4.93476592,150.82,150.81,8.97763744]
[1752011078123,4.93476592,150.82,150.81,4.07497398]
[1752011079735,4.93476592,150.82,150.81,7.39328531]
[1752011080614,4.9507299,150.82,150.81,7.39328531]
[1752011080819,4.9507299,150.82,150.81,4.73107883]
[1752011081129,4.9507299,150.82,150.77,6.63261922]
[1752011081338,23.60037876,150.81,150.77,4.73107883]
[1752011081545,4.9507299,150.8,150.77,4.73107883]
[1752011081709,4.9507299,150.79,150.76,4.73107883]
[1752011081905,4.9507299,150.78,150.76,4.73107883]
[1752011082213,4.9507299,150.77,150.75,4.73107883]
[1752011082403,4.9507299,150.76,150.75,4.73107883]
[1752011082803,4.9507299,150.76,150.75,7.39812922]
[1752011084733,4.95849186,150.76,150.75,7.39812922]
[1752011091050,4.95849186,150.76,150.74,6.63377456]
[1752011091051,4.95849186,150.76,150.71,6.66525977]
[1752011091339,4.95849186,150.75,150.71,6.66525977]
[1752011091547,4.95849186,150.74,150.71,6.66525977]
[1752011091724,4.95849186,150.73,150.71,6.66525977]
[1752011092046,4.95849186,150.72,150.71,6.66525977]
[1752011092432,4.95849186,150.72,150.71,14.06338899]
[1752011095234,4.95849186,150.72,150.71,6.66525977]
[1752011095437,4.95849186,150.72,150.71,14.06338899]
[1752011098734,4.95849186,150.72,150.71,48.16338899]
[1752011099924,4.94925634,150.72,150.71,48.16338899]
[1752011101951,4.94925634,150.72,150.71,55.56151821]
[1752011102336,18.64964886,150.8,150.71,72.43399077]
[1752011102558,18.64964886,150.8,150.79,7.39812922]
[1752011102857,18.64964886,150.8,150.78,4.73276424]
[1752011104267,18.64964886,150.8,150.77,4.73276424]
[1752011105764,18.64964886,150.8,150.76,40.71294459]
[1752011106069,18.64964886,150.8,150.77,4.73276424]
[1752011106450,25.28097284,150.8,150.76,34.08]
[1752011106649,25.28097284,150.8,150.77,4.73276424]
[1752011107162,25.28097284,150.8,150.76,34.08]
[1752011107362,25.28097284,150.8,150.77,4.73276424]
[1752011108046,25.28097284,150.8,150.76,4.73276424]
[1752011108955,25.28097284,150.8,150.73,6.63437935]
[1752011109149,18.64964886,150.78,150.76,4.73276424]
[1752011114462,23.60638614,150.77,150.76,4.73276424]
[1752011116671,23.60638614,150.77,150.74,6.63389836]
[1752011116877,18.64964886,150.77,150.76,4.73276424]
[1752011117076,23.60702162,150.77,150.76,4.73276424]
[1752011117874,4.95737276,150.77,150.76,4.73276424]
[1752011118267,5.01737276,150.77,150.76,4.73276424]
[1752011119059,0.06,150.77,150.76,4.73276424]
[1752011119468,0.06,150.77,150.76,11.3658234]
[1752011125482,5.02665413,150.77,150.76,11.3658234]
[1752011136178,0.06,150.77,150.76,11.3658234]
[1752011136687,0.06,150.77,150.76,4.73276424]
[1752011137766,0.06,150.77,150.76,11.3658234]
[1752011142089,0.06,150.77,150.76,4.73276424]
[1752011143394,5.03014302,150.77,150.76,4.73276424]
[1752011150191,5.03014302,150.77,150.76,11.3658234]
[1752011151601,0.06,150.77,150.76,11.3658234]
[1752011154602,5.03125665,150.77,150.76,11.3658234]
[1752011155582,0.06,150.77,150.76,11.3658234]
[1752011157796,5.03188452,150.77,150.76,11.3658234]
[1752011158609,0.06,150.77,150.76,11.3658234]
[1752011161315,5.03292447,150.77,150.76,11.3658234]
[1752011166703,5.03389716,150.77,150.76,11.3658234]
[1752011167717,5.03386216,150.77,150.76,11.3658234]
[1752011168226,5.03383231,150.77,150.76,11.3658234]
[1752011168717,0.06,150.77,150.76,11.3658234]
[1752011173799,5.03353895,150.77,150.76,11.3658234]
[1752011180408,0.06,150.77,150.76,11.3658234]
[1752011181121,0.06,150.77,150.76,6.63305916]
[1752011181428,0.06,150.77,150.76,11.3658234]
[1752011193835,1e-08,150.77,150.76,12.31345245]
[1752011203546,1e-08,150.77,150.76,22.31345245]
[1752011206439,1e-08,150.77,150.76,12.31345245]
[1752011206644,1e-08,150.77,150.76,22.31345245]
[1752011210158,1e-08,150.77,150.76,12.31345245]
[1752011210360,1e-08,150.77,150.76,22.31345245]
[1752011211849,1e-08,150.77,150.76,12.31345245]
[1752011212941,1e-08,150.77,150.76,11.65014654]
[1752011223763,1e-08,150.77,150.76,71.3058234]
[1752011223943,1e-08,150.77,150.76,71.59014654]
[1752011224259,1e-08,150.77,150.76,64.5212035]
[1752011224456,1e-08,150.77,150.76,65.18450941]
[1752011226053,1e-08,150.77,150.76,46.25345245]
[1752011227072,0.06,150.81,150.79,26.0]
[1752011227269,0.06,150.81,150.8,38.67276424]
[1752011228260,0.06,150.81,150.8,45.30406397]
[1752011229568,0.06,150.81,150.8,64.23512093]
[1752011229766,25.47756153,150.88,150.8,114.25419207]
[1752011229767,0.2,150.88,150.8,114.25419207]
[1752011230068,4.96823713,150.87,150.8,120.20597204]
[1752011230260,0.2,150.88,150.8,120.20597204]
[1752011230971,0.2,150.88,150.83,26.0]
[1752011231154,0.2,150.88,150.87,4.73276424]
[1752011231358,5.16408323,150.88,150.87,4.73276424]
[1752011232363,0.2,150.88,150.87,4.73276424]
[1752011233855,0.2,150.88,150.86,4.73276424]
[1752011234054,6.82795592,150.88,150.86,4.73276424]
[1752011234260,6.82795592,150.88,150.85,33.92]
[1752011234576,6.82795592,150.88,150.86,4.73276424]
[1752011234753,0.2,150.88,150.86,4.73276424]
[1752011235265,0.2,150.88,150.85,33.92]
[1752011235562,0.2,150.88,150.87,4.73276424]
[1752011235961,0.2,150.88,150.87,11.36098721]
[1752011236574,0.2,150.88,150.87,45.28098721]
[1752011238449,0.2,150.91,150.88,8.2612]
[1752011238650,0.2,150.91,150.89,33.92]
[1752011238863,0.2,150.91,150.9,4.73276424]
[1752011240461,0.2,150.91,150.89,4.73276424]
[1752011240980,6.826511,150.91,150.88,38.65276424]
[1752011241148,6.826511,150.91,150.88,4.73276424]
[1752011241351,6.826511,150.91,150.86,33.92]
[1752011241352,6.826511,150.91,150.87,4.73276424]
[1752011241757,6.826511,150.91,150.88,4.73276424]
[1752011251572,6.826511,150.91,150.87,4.73276424]
[1752011252872,18.64964886,150.9,150.88,4.73276424]
[1752011253184,18.64964886,150.9,150.86,4.73276424]
[1752011254288,6.62734442,150.89,150.86,4.73276424]
[1752011254465,18.64964886,150.88,150.86,4.73276424]
[1752011254664,18.64964886,150.88,150.85,4.73276424]
[1752011255192,20.25804886,150.88,150.84,4.73276424]
[1752011256491,6.62822297,150.87,150.84,4.73276424]
[1752011257893,6.62822297,150.87,150.85,4.73276424]
[1752011262983,6.62822297,150.87,150.81,6.66086002]
[1752011263187,6.62822297,150.87,150.85,4.73276424]
[1752011266702,6.62822297,150.87,150.84,4.73276424]
[1752011267985,6.62822297,150.87,150.85,4.73276424]
[1752011269706,25.27787183,150.87,150.86,4.73276424]
[1752011271020,6.62822297,150.87,150.85,4.73276424]
[1752011272518,0.2,150.91,150.86,4.73276424]
[1752011272693,18.64964886,150.9,150.87,4.73276424]
[1752011274012,25.27674704,150.9,150.87,4.73276424]
[1752011275601,18.64964886,150.9,150.88,4.73276424]
[1752011277319,18.64964886,150.9,150.87,6.62816855]
[1752011277523,18.64964886,150.9,150.87,11.36093279]
[1752011278913,18.64964886,150.9,150.87,4.73276424]
[1752011281827,18.64964886,150.9,150.88,4.73276424]
[1752011284031,18.64964886,150.9,150.87,4.73276424]
[1752011288329,18.64964886,150.9,150.88,4.73276424]
[1752011291613,0.2,150.91,150.89,4.73276424]
[1752011291918,0.2,150.91,150.9,4.73276424]
[1752011292114,1e-08,150.91,150.9,24.04510362]
[1752011292423,0.06,150.9,150.89,41.5326]
[1752011292619,0.06,150.9,150.89,46.26536424]
[1752011292812,0.06,150.9,150.89,48.91421739]
[1752011293129,0.06,150.9,150.89,55.54156181]
[1752011305611,0.06,150.9,150.89,47.86896181]
[1752011305812,0.06,150.9,150.89,47.84896181]
[1752011307217,0.06,150.9,150.89,14.00896181]
[1752011308959,0.06,150.9,150.89,7.38161739]
[1752011310840,0.06,150.9,150.89,14.00896181]
[1752011314219,0.06,150.9,150.89,6.62734442]
[1752011314531,0.06,150.9,150.89,14.00896181]
[1752011318854,0.06,150.9,150.89,11.35302832]
[1752011328880,0.06,150.9,150.89,45.19302832]
[1752011333741,0.06,150.9,150.89,11.35302832]
[1752011334040,0.06,150.9,150.89,45.17302832]
[1752011334356,0.06,150.9,150.89,11.35302832]
[1752011342253,0.06,150.9,150.89,45.17302832]
[1752011362790,0.06,150.9,150.89,6.62734442]
[1752011363088,0.06,150.9,150.89,45.15302832]
[1752011364181,0.06,150.9,150.89,40.42734442]
[1752011364380,0.06,150.9,150.89,45.15302832]
[1752011366362,0.06,150.9,150.89,11.35302832]
[1752011366563,0.06,150.9,150.89,45.15302832]
[1752011375494,0.06,150.9,150.89,11.35302832]
[1752011375694,0.06,150.9,150.89,45.15302832]
[1752011399287,0.06,150.9,150.89,11.35302832]
[1752011399600,0.06,150.9,150.89,45.11302832]
[1752011402208,0.06,150.9,150.89,11.35302832]
[1752011402418,0.06,150.9,150.89,45.11302832]
[1752011406496,0.06,150.9,150.89,38.4856839]
[1752011407390,0.06,150.9,150.89,4.7256839]
[1752011407695,0.06,150.9,150.89,38.4856839]
[1752011409082,0.06,150.9,150.89,33.76]
[1752011409293,0.06,150.9,150.89,38.4856839]
[1752011418520,0.06,150.9,150.88,0.03]
[1752011418697,0.06,150.9,150.88,38.5156839]
[1752011419213,0.06,150.9,150.88,4.7556839]
[1752011426310,0.06,150.9,150.89,4.7256839]
[1752011428246,0.06,150.9,150.88,4.7556839]
[1752011428536,0.06,150.9,150.88,0.03]
[1752011429316,6.68690523,150.9,150.88,0.03]
[1752011432534,6.62734442,150.89,150.88,0.03]
[1752011441153,11.35302832,150.89,150.88,0.03]
[1752011441533,6.62734442,150.89,150.88,0.03]
[1752011444552,30.28700032,150.89,150.88,0.03]
[1752011447562,25.56131642,150.89,150.88,0.03]
[1752011448866,30.28700032,150.89,150.88,0.03]
[1752011452863,25.56131642,150.89,150.88,0.03]
[1752011453064,30.28700032,150.89,150.88,0.03]
[1752011453662,56.28700032,150.89,150.88,0.03]
[1752011453863,57.6641559,150.88,150.81,0.03]
[1752011454184,44.64964886,150.83,150.81,0.03]
[1752011454355,78.36964886,150.83,150.81,0.03]
[1752011454975,6.63042036,150.82,150.81,4.7556839]
[1752011455182,25.28006922,150.82,150.81,4.7556839]
[1752011456867,25.28006922,150.82,150.81,0.03]
[1752011491790,152.2256839,150.84,150.81,4.7556839]
[1752011491791,147.5,150.84,150.81,4.7556839]
[1752011492119,147.5,150.84,150.83,4.7256839]
[1752011494494,232.53814806,150.87,150.83,4.7256839]
[1752011494687,232.53814806,150.87,150.85,4.7256839]
[1752011495184,198.83814806,150.87,150.85,4.7256839]
[1752011495610,198.83814806,150.87,150.84,4.7256839]
[1752011498114,232.53814806,150.87,150.84,4.7256839]
[1752011500120,0.28432314,150.86,150.81,0.03]
[1752011500421,18.64964886,150.84,150.81,4.7556839]
[1752011500917,18.64964886,150.84,150.82,4.7256839]
[1752011502326,25.2792579,150.84,150.82,4.7256839]
[1752011504729,25.2792579,150.84,150.81,4.7556839]
[1752011507212,25.2792579,150.84,150.81,0.03]
[1752011507213,51.2792579,150.84,150.81,0.03]
[1752011507524,84.9592579,150.84,150.81,0.03]
[1752011507927,33.68,150.83,150.81,0.03]
[1752011508819,51.2792579,150.84,150.81,0.03]
[1752011509022,33.68,150.83,150.81,0.03]
[1752011509528,51.2792579,150.84,150.81,0.03]
[1752011509727,33.68,150.83,150.81,0.03]
[1752011513028,51.2792579,150.84,150.81,0.03]
[1752011513234,84.9592579,150.84,150.81,0.03]
[1752011519248,51.2792579,150.84,150.81,0.03]
[1752011519429,40.31001199,150.83,150.81,0.03]
[1752011530254,6.63001199,150.83,150.81,0.03]
[1752011554290,51.27937724,150.84,150.81,0.03]
[1752011554589,84.91937724,150.84,150.81,4.7556839]
[1752011555390,51.27937724,150.84,150.81,4.7556839]
[1752011557196,51.27937724,150.84,150.81,0.03]
[1752011561799,84.91937724,150.84,150.81,0.03]
[1752011562197,51.27937724,150.84,150.81,0.03]
[1752011562397,84.91937724,150.84,150.81,0.03]
[1752011563297,51.27937724,150.84,150.81,0.03]
[1752011563503,51.27937724,150.84,150.81,4.7556839]
[1752011565182,51.27937724,150.84,150.81,0.03]
[1752011569200,56.00506114,150.84,150.81,0.03]
[1752011569585,51.27937724,150.84,150.81,0.03]
[1752011583922,84.89937724,150.84,150.81,0.03]
[1752011588422,89.62506114,150.84,150.81,0.03]
[1752011591838,89.62506114,150.84,150.81,0.03]
[1752011594130,84.89937724,150.84,150.81,0.03]
[1752011594335,89.62506114,150.84,150.81,0.03]
[1752011598329,56.00506114,150.84,150.81,0.03]
[1752011598529,89.62506114,150.84,150.81,0.03]
[1752011599431,84.89937724,150.84,150.81,0.03]
[1752011600119,51.27937724,150.84,150.81,0.03]
[1752011605326,51.27937724,150.84,150.82,4.7256839]
[1752011605639,147.5,150.85,150.83,4.7256839]
[1752011605931,0.06,150.87,150.84,4.7256839]
[1752011606136,0.06,150.87,150.86,4.7256839]
[1752011606349,0.06,150.87,150.85,4.7256839]
[1752011607518,0.06,150.87,150.83,14.4917633]
[1752011607727,0.06,150.87,150.84,4.7256839]
[1752011618353,0.06,150.87,150.85,4.7256839]
[1752011620048,0.06,150.87,150.86,4.7256839]
[1752011620430,26.06,150.9,150.86,4.7256839]
[1752011620431,0.06,150.9,150.86,12.5221839]
[1752011620628,0.06,150.9,150.89,4.7256839]
[1752011621340,0.06,150.9,150.89,11.35302832]
[1752011621943,0.06,150.9,150.89,4.7256839]
[1752011622448,0.06,150.9,150.88,4.7256839]
[1752011622958,23.43533276,150.9,150.84,0.03]
[1752011623249,23.43533276,150.9,150.85,4.7256839]
[1752011623455,6.62734442,150.89,150.85,4.7256839]
[1752011625141,6.62734442,150.89,150.84,0.03]
[1752011625338,18.64964886,150.88,150.85,4.7256839]
[1752011625733,25.27751153,150.88,150.85,4.7256839]
[1752011625962,6.62786267,150.88,150.85,4.7256839]
[1752011627272,18.64964886,150.88,150.85,4.7256839]
[1752011629464,25.27744153,150.88,150.85,4.7256839]
[1752011629674,25.27744153,150.88,150.84,4.7556839]
[1752011635373,30.00312543,150.88,150.84,4.7556839]
[1752011638475,25.27744153,150.88,150.84,4.7556839]
[1752011639787,0.06,150.9,150.85,33.58]
[1752011639960,0.06,150.9,150.86,4.7256839]
[1752011640269,23.43533276,150.9,150.85,4.7256839]
[1752011640448,4.7256839,150.88,150.84,0.03]
[1752011641264,23.37533276,150.88,150.84,0.03]
[1752011641459,26.0,150.88,150.84,0.03]
[1752011642174,26.06,150.88,150.84,0.03]
[1752011642851,30.7856839,150.88,150.84,0.03]
[1752011644274,30.7856839,150.88,150.84,4.7556839]
[1752011644275,25.33750272,150.88,150.84,4.7556839]
[1752011644854,18.70964886,150.88,150.84,4.7556839]
[1752011645351,18.70964886,150.88,150.84,11.38515526]
[1752011648664,18.70964886,150.88,150.84,6.65947136]
[1752011648888,18.70964886,150.88,150.84,11.38515526]
[1752011650192,18.70964886,150.88,150.84,6.65947136]
[1752011650366,18.70964886,150.88,150.84,11.38515526]
[1752011652390,18.70964886,150.88,150.84,6.65947136]
[1752011652576,18.70964886,150.88,150.85,4.7256839]
[1752011656668,18.70964886,150.88,150.84,0.03]
[1752011656867,25.33753905,150.88,150.84,4.7556839]
[1752011657707,18.64964886,150.87,150.84,0.03]
[1752011658003,23.37533276,150.87,150.84,0.03]
[1752011658307,23.37533276,150.85,150.84,0.03]
[1752011658674,28.33947294,150.85,150.84,0.03]
[1752011658910,34.96857469,150.85,150.84,0.03]
[1752011659871,68.54857469,150.85,150.84,0.03]
[1752011660991,68.83289783,150.85,150.84,0.03]
[1752011662073,68.83018952,150.85,150.84,0.03]
[1752011663212,64.10450562,150.85,150.84,0.03]
[1752011663385,68.83018952,150.85,150.84,0.03]
[1752011663585,4.96143187,150.85,150.84,0.03]
[1752011663779,4.96143187,150.85,150.84,4.7556839]
[1752011663996,11.41365061,150.88,150.84,0.03]
[1752011664302,4.9549653,150.87,150.84,0.03]
[1752011664489,4.9549653,150.86,150.84,0.03]
[1752011664688,57.11533276,150.87,150.84,0.03]
[1752011664891,4.95524326,150.86,150.84,0.03]
[1752011665084,4.95524326,150.85,150.84,0.03]
[1752011667408,11.58434501,150.85,150.84,0.03]
[1752011668508,71.64972125,150.85,150.84,0.03]
[1752011668716,97.64972125,150.85,150.84,0.03]
[1752011669788,90.25831701,150.85,150.84,0.03]
[1752011670395,97.64972125,150.85,150.84,0.03]
[1752011670597,30.95524326,150.85,150.84,0.03]
[1752011670892,4.95524326,150.85,150.84,0.03]
[1752011672419,23.60489212,150.85,150.84,0.03]
[1752011672625,30.23399387,150.85,150.84,0.03]
[1752011673798,25.27875061,150.85,150.84,0.03]
[1752011676716,30.23587753,150.85,150.84,0.03]
[1752011678622,23.60677578,150.85,150.84,0.03]
[1752011679514,23.60696519,150.85,150.84,0.03]
[1752011679912,37.91179432,150.85,150.84,0.03]
[1752011689226,44.933972,150.82,150.81,0.03]
[1752011689434,91.00269257,150.82,150.81,0.03]
[1752011690213,92.6757966,150.82,150.81,0.03]
[1752011690414,51.28006922,150.82,150.81,0.03]
[1752011690618,92.41147346,150.82,150.81,0.03]
[1752011690808,92.55363503,150.82,150.81,0.03]
[1752011691014,92.6957966,150.82,150.81,0.03]
[1752011691229,92.55363503,150.82,150.81,0.03]
[1752011691436,92.6957966,150.82,150.81,0.03]
[1752011699313,92.55363503,150.82,150.81,0.03]
[1752011699620,92.6957966,150.82,150.81,0.03]
[1752011699813,92.55363503,150.82,150.81,0.03]
[1752011700031,92.6957966,150.82,150.81,0.03]
[1752011700224,92.55363503,150.82,150.81,0.03]
[1752011700620,92.6957966,150.82,150.81,0.03]
[1752011702038,92.6557966,150.82,150.81,0.03]
[1752011709250,92.6557966,150.82,150.81,1e-08]
[1752011710548,101.71300084,150.82,150.81,1e-08]
[1752011710852,111.71300084,150.82,150.81,1e-08]
[1752011712427,116.92475644,150.82,150.81,1e-08]
[1752011714451,26.0,150.76,150.75,0.03]
[1752011714756,86.04537624,150.76,150.75,0.03]
[1752011716532,92.6784354,150.76,150.75,0.03]
[1752011719254,92.6784354,150.76,150.75,1e-08]
[1752011730968,90.02577089,150.76,150.75,1e-08]
[1752011742584,89.96577089,150.76,150.75,1e-08]
[1752011749279,18.933972,150.75,150.73,0.2]
[1752011749483,61.6144468,150.76,150.73,0.2]
[1752011749484,83.33271173,150.74,150.73,0.2]
[1752011749987,166.233972,150.73,150.72,0.03]
[1752011750186,170.97271173,150.73,150.72,0.03]
[1752011750697,177.60709108,150.73,150.72,0.03]
[1752011754663,216.23563636,150.73,150.72,0.03]
[1752011754878,68.93563636,150.73,150.72,0.03]
[1752011759690,68.93950167,150.73,150.72,0.03]
[1752011762704,68.94082522,150.73,150.72,0.03]
[1752011763488,87.89578414,150.73,150.72,0.03]
[1752011765199,95.35144496,150.73,150.72,0.03]
[1752011766700,95.35144496,150.73,150.69,0.2]
[1752011766701,44.64964886,150.7,150.69,0.2]
[1752011766903,95.51778355,150.7,150.69,0.2]
[1752011768305,102.15348361,150.7,150.69,0.2]
[1752011768797,97.17974947,150.7,150.69,0.2]
[1752011770605,102.14606152,150.7,150.69,0.2]
[1752011771288,102.14537874,150.7,150.69,0.2]
[1752011776202,91.05526209,150.7,150.69,0.2]
[1752011776536,97.69096215,150.7,150.69,0.2]
[1752011777304,102.42970188,150.7,150.69,0.2]
[1752011779910,97.46407261,150.7,150.69,0.2]